fUST/lending_fUST_20250524
["ID","MTS","AMOUNT","RATE_DAILY","PERIOD"]
[362144882,1748035833165,-531.29,0.00016438,2]
[362144884,1748035833174,-430.0,0.00016438,2]
[362144886,1748035833184,-430.0,0.00016438,2]
[362144888,1748035833193,-430.0,0.00016438,2]
[362144890,1748035833203,-430.0,0.00016438,2]
[362144892,1748035833213,-430.0,0.00016438,2]
[362144894,1748035833222,-430.0,0.00016438,2]
[362144896,1748035833231,-430.0,0.00016438,2]
[362144898,1748035833241,-430.0,0.00016438,2]
[362144900,1748035833251,-430.0,0.00016438,2]
[362144902,1748035833260,-430.0,0.00016438,2]
[362144904,1748035833270,-430.0,0.00016438,2]
[362144906,1748035833280,-430.0,0.00016438,2]
[362144908,1748035833289,-443.68,0.00016438,2]
[362144910,1748035833299,-430.0,0.00016438,2]
[362144912,1748035833309,-13138.33412431,0.00016438,2]
[362144914,1748035833318,-500.0,0.00016711,2]
[362144916,1748035833328,-430.0,0.00016712,2]
[362144918,1748035833339,-430.0,0.00016712,2]
[362144920,1748035833349,-430.0,0.00016712,2]
[362144922,1748035833358,-430.0,0.00016712,2]
[362144924,1748035833368,-430.0,0.00016712,2]
[362144926,1748035833377,-430.0,0.00016712,2]
[362144928,1748035833387,-516.11634837,0.00016712,2]
[362144930,1748035833396,-430.0,0.00016712,2]
[362144932,1748035833407,-260.0,0.00016712,2]
[362144934,1748035833417,-430.0,0.00016712,2]
[362144937,1748035833427,-430.0,0.00016712,2]
[362144939,1748035833440,-463.68,0.00016712,2]
[362144941,1748035833449,-430.0,0.00016712,2]
[362144943,1748035833459,-430.0,0.00016712,2]
[362144945,1748035833468,-500.0,0.00016712,2]
[362144947,1748035833479,-430.0,0.00016712,2]
[362144949,1748035833488,-430.0,0.00016712,2]
[362144951,1748035833498,-430.0,0.00016712,2]
[362144953,1748035833508,-430.0,0.00016712,2]
[362144955,1748035833518,-430.0,0.00016712,2]
[362144957,1748035833527,-430.0,0.00016712,2]
[362144959,1748035833538,-430.0,0.00016712,2]
[362144961,1748035833548,-430.0,0.00016712,2]
[362144963,1748035833558,-370.0,0.00016712,2]
[362144965,1748035833568,-430.0,0.00016712,2]
[362144967,1748035833577,-430.0,0.00016712,2]
[362144969,1748035833587,-231.2,0.00016712,2]
[362144971,1748035833596,-430.0,0.00016712,2]
[362144973,1748035833606,-430.0,0.00016712,2]
[362144975,1748035833615,-430.0,0.00016712,2]
[362144977,1748035833624,-430.0,0.00016712,2]
[362144979,1748035833634,-430.0,0.00016712,2]
[362144981,1748035833644,-430.0,0.00016712,2]
[362144983,1748035833654,-430.0,0.00016712,2]
[362144985,1748035833663,-430.0,0.00016712,2]
[362144987,1748035833673,-430.0,0.00016712,2]
[362144989,1748035833683,-430.0,0.00016712,2]
[362144991,1748035833692,-430.0,0.00016712,2]
[362144993,1748035833702,-430.0,0.00016712,2]
[362144995,1748035833711,-430.0,0.00016712,2]
[362144997,1748035833721,-430.0,0.00016712,2]
[362144999,1748035833731,-430.0,0.00016712,2]
[362145001,1748035833741,-430.0,0.00016712,2]
[362145003,1748035833751,-430.0,0.00016712,2]
[362145005,1748035833761,-430.0,0.00016712,2]
[362145008,1748035833771,-430.0,0.00016712,2]
[362145010,1748035833782,-430.0,0.00016712,2]
[362145012,1748035833792,-384.67,0.00016712,2]
[362145014,1748035833802,-430.0,0.00016712,2]
[362145016,1748035833811,-430.0,0.00016712,2]
[362145018,1748035833821,-380.47,0.00016712,2]
[362145020,1748035833830,-500.0,0.00016985,2]
[362145022,1748035833840,-430.0,0.00016986,2]
[362145024,1748035833849,-465.29,0.00016986,2]
[362145026,1748035833859,-430.0,0.00016986,2]
[362145028,1748035833868,-430.0,0.00016986,2]
[362145030,1748035833879,-430.0,0.00016986,2]
[362145032,1748035833889,-430.0,0.00016986,2]
[362145034,1748035833898,-500.0,0.00016986,2]
[362145036,1748035833908,-430.0,0.00016986,2]
[362145038,1748035833917,-430.0,0.00016986,2]
[362145040,1748035833926,-562.34,0.00016986,2]
[362145042,1748035833936,-430.0,0.00016986,2]
[362145044,1748035833945,-430.0,0.00016986,2]
[362145046,1748035833955,-430.0,0.00016986,2]
[362145048,1748035833965,-430.0,0.00016986,2]
[362145050,1748035833975,-430.0,0.00016986,2]
[362145052,1748035833984,-430.0,0.00016986,2]
[362145054,1748035833995,-430.0,0.00016986,2]
[362145056,1748035834004,-430.0,0.00016986,2]
[362145058,1748035834014,-212.8,0.00016986,2]
[362145060,1748035834023,-434.5,0.00016986,2]
[362145062,1748035834033,-227.68,0.00016986,2]
[362145064,1748035834042,-354.57150881,0.00016986,2]
[362145066,1748035834052,-430.0,0.00016986,2]
[362145068,1748035834062,-430.0,0.00016986,2]
[362145070,1748035834072,-430.0,0.00016986,2]
[362145072,1748035834082,-430.0,0.00016986,2]
[362145074,1748035834092,-430.0,0.00016986,2]
[362145076,1748035834102,-430.0,0.00016986,2]
[362145078,1748035834112,-430.0,0.00016986,2]
[362145080,1748035834122,-430.0,0.00016986,2]
[362145082,1748035834131,-430.0,0.00016986,2]
[362145084,1748035834142,-340.53,0.00016986,2]
[362145086,1748035834151,-863.17628164,0.0001716,2]
[362145088,1748035834160,-894.64583333,0.0001726,3]
[362145090,1748035834171,-382.31465316,0.0001726,2]
[362145092,1748035834181,-500.0,0.0001726,2]
[362145095,1748035834191,-430.0,0.0001726,2]
[362145097,1748035834200,-430.0,0.0001726,2]
[362145099,1748035834209,-430.0,0.0001726,2]
[362145101,1748035834219,-430.25,0.0001726,2]
[362145103,1748035834228,-566.86,0.0001726,2]
[362145105,1748035834238,-430.0,0.0001726,2]
[362145107,1748035834248,-430.0,0.0001726,2]
[362145109,1748035834258,-430.0,0.0001726,2]
[362145111,1748035834267,-565.88,0.0001726,2]
[362145113,1748035834277,-430.0,0.0001726,2]
[362145115,1748035834287,-430.0,0.0001726,2]
[362145117,1748035834297,-430.0,0.0001726,2]
[362145119,1748035834307,-430.0,0.0001726,2]
[362145121,1748035834316,-430.0,0.0001726,2]
[362145123,1748035834327,-430.0,0.0001726,2]
[362145125,1748035834337,-430.0,0.0001726,2]
[362145127,1748035834346,-430.0,0.0001726,2]
[362145129,1748035834356,-500.0,0.00017308,2]
[362145131,1748035834365,-223.35908659,0.00017386,2]
[362145133,1748035834375,-500.83744052,0.00017396,2]
[362145135,1748035834386,-338.67164563,0.00017459,2]
[362145137,1748035834395,-500.0,0.00017497,2]
[362145139,1748035834405,-500.0,0.00017525,2]
[362145141,1748035834414,-500.0,0.00017533,2]
[362145143,1748035834424,-12647.66147447,0.00017534,3]
[362145145,1748035834437,-500.0,0.00017534,2]
[362145147,1748035834447,-430.0,0.00017534,2]
[362145149,1748035834456,-430.0,0.00017534,2]
[362145151,1748035834466,-430.0,0.00017534,2]
[362145153,1748035834476,-430.0,0.00017534,2]
[362145156,1748035834486,-430.0,0.00017534,2]
[362145158,1748035834497,-362.26,0.00017534,2]
[362145160,1748035834506,-430.0,0.00017534,2]
[362145162,1748035834515,-430.0,0.00017534,2]
[362145164,1748035834526,-430.0,0.00017534,2]
[362145166,1748035834535,-430.0,0.00017534,2]
[362145168,1748035834544,-430.0,0.00017534,2]
[362145169,1748035834554,-430.0,0.00017534,2]
[362145172,1748035834563,-430.0,0.00017534,2]
[362145174,1748035834573,-229.64,0.00017534,2]
[362145176,1748035834583,-500.0,0.00017549,2]
[362145178,1748035834592,-403.71612484,0.00017757,2]
[362145180,1748035834602,-215.0738,0.00017797,2]
[362145182,1748035834611,-500.0,0.00017808,2]
[362145184,1748035834620,-430.0,0.00017808,2]
[362145186,1748035834629,-430.0,0.00017808,2]
[362145188,1748035834638,-430.0,0.00017808,2]
[362145201,1748035834752,-275.67,0.00017808,2]
[362145203,1748035834763,-430.0,0.00017808,2]
[362145205,1748035834772,-430.0,0.00017808,2]
[362145207,1748035834781,-430.0,0.00017808,2]
[362145209,1748035834792,-430.0,0.00017808,2]
[362145211,1748035834802,-430.0,0.00017808,2]
[362145213,1748035834812,-430.0,0.00017808,2]
[362145215,1748035834821,-430.0,0.00017808,2]
[362145217,1748035834830,-174.24,0.00017808,2]
[362145219,1748035834840,-587.0,0.00017966,2]
[362145221,1748035834850,-500.0,0.00018082,2]
[362145223,1748035834859,-430.0,0.00018082,2]
[362145225,1748035834869,-430.0,0.00018082,2]
[362145227,1748035834879,-430.0,0.00018082,2]
[362145229,1748035834889,-430.0,0.00018082,2]
[362145231,1748035834898,-430.0,0.00018082,2]
[362145233,1748035834909,-430.0,0.00018082,2]
[362145235,1748035834918,-513.72,0.00018082,2]
[362145237,1748035834928,-430.0,0.00018082,2]
[362145239,1748035834937,-430.0,0.00018082,2]
[362145241,1748035834947,-430.0,0.00018082,2]
[362145243,1748035834958,-500.0,0.00018355,2]
[362145245,1748035834967,-500.0,0.00018356,2]
[362145247,1748035834977,-430.0,0.00018356,2]
[362145249,1748035834987,-430.0,0.00018356,2]
[362145251,1748035834997,-185.86,0.00018356,2]
[362145253,1748035835007,-430.0,0.00018356,2]
[362145255,1748035835016,-430.0,0.00018356,2]
[362145257,1748035835027,-430.0,0.00018356,2]
[362145259,1748035835036,-430.0,0.00018356,2]
[362145261,1748035835045,-430.0,0.00018356,2]
[362145263,1748035835055,-368.28,0.00018356,2]
[362145265,1748035835064,-12647.66147447,0.0001842,2]
[362145267,1748035835074,-212.48480548,0.0001842,2]
[362145269,1748035835083,-894.64583333,0.0001842,2]
[362145271,1748035835093,-422.85710789,0.0001842,2]
[362145273,1748035835103,-160.0,0.0001842,2]
[362145275,1748035835114,-500.0,0.00018499,2]
[362145277,1748035835123,-500.0,0.0001863,2]
[362145280,1748035835134,-409.34,0.0001863,2]
[362145281,1748035835144,-430.0,0.0001863,2]
[362145284,1748035835154,-430.0,0.0001863,2]
[362145286,1748035835163,-411.11,0.0001863,2]
[362145288,1748035835173,-430.0,0.0001863,2]
[362145290,1748035835183,-430.0,0.0001863,2]
[362145292,1748035835192,-430.0,0.0001863,2]
[362145294,1748035835202,-213.6465194,0.00018904,2]
[362145296,1748035835212,-430.0,0.00018904,2]
[362145298,1748035835221,-430.0,0.00018904,2]
[362145300,1748035835230,-430.0,0.00018904,2]
[362145302,1748035835239,-430.0,0.00018904,2]
[362145304,1748035835249,-430.0,0.00018904,2]
[362145306,1748035835259,-863.1762816,0.0001907,2]
[362145308,1748035835268,-223.0315306,0.00019166,2]
[362145310,1748035835278,-272.16,0.00019178,2]
[362145312,1748035835288,-430.0,0.00019178,2]
[362145314,1748035835298,-430.0,0.00019178,2]
[362145316,1748035835308,-430.0,0.00019178,2]
[362145318,1748035835319,-430.0,0.00019178,2]
[362145320,1748035835328,-217.744465,0.00019178,2]
[362145322,1748035835337,-403.71612484,0.00019186,2]
[362145324,1748035835347,-430.0,0.00019452,2]
[362145326,1748035835357,-430.0,0.00019452,2]
[362145328,1748035835367,-430.0,0.00019452,2]
[362145330,1748035835376,-430.0,0.00019452,2]
[362145332,1748035835386,-430.0,0.00019726,2]
[362145334,1748035835396,-430.0,0.00019726,2]
[362145336,1748035835405,-430.0,0.00019726,2]
[362145338,1748035835414,-495.71,0.00019726,2]
[362145339,1748035835424,-500.0,0.00019792,2]
[362145342,1748035835439,-404.0,0.00019793,2]
[362145343,1748035835448,-430.0,0.0002,2]
[362145345,1748035835458,-151.76685933,0.0002,7]
[362145348,1748035835467,-430.0,0.0002,2]
[362145350,1748035835477,-430.0,0.0002,2]
[362145352,1748035835487,-430.0,0.00020273,2]
[362145353,1748035835497,-430.0,0.00020273,2]
[362145356,1748035835508,-433.40911986,0.00020273,2]
[362145358,1748035835517,-231.28369723,0.00020535,2]
[362145360,1748035835528,-500.0,0.00020547,2]
[362145362,1748035835537,-430.0,0.00020547,2]
[362145364,1748035835547,-478.32,0.00020547,2]
[362145365,1748035835556,-500.0,0.00020548,2]
[362145366,1748035835566,-500.0,0.00020548,2]
[362145367,1748035835576,-500.0,0.00020548,2]
[362145368,1748035835585,-500.0,0.00020548,2]
[362145369,1748035835595,-500.0,0.00020548,2]
[362145370,1748035835605,-500.0,0.00020548,2]
[362145371,1748035835615,-500.0,0.00020548,2]
[362145372,1748035835624,-500.0,0.00020548,2]
[362145373,1748035835634,-500.0,0.00020548,2]
[362145374,1748035835644,-400.0,0.00020548,2]
[362145375,1748035835654,-500.0,0.00020548,2]
[362145376,1748035835663,-500.0,0.00020548,2]
[362145377,1748035835673,-500.0,0.00020548,2]
[362145378,1748035835683,-500.0,0.00020548,2]
[362145379,1748035835693,-250.0,0.00020548,2]
[362145380,1748035835703,-403.71612484,0.00020614,2]
[362145382,1748035835714,-430.0,0.00020821,2]
[362145383,1748035835723,-863.1762816,0.0002098,2]
[362145385,1748035835734,-194.21,0.00021095,2]
[362145386,1748035835743,-256.9,0.00021195,2]
[362145387,1748035835754,-239.84119403,0.00021904,2]
[362145388,1748035835763,-500.0,0.00021917,2]
[362145389,1748035835783,-403.71612484,0.00022043,2]
[362145390,1748035835796,-500.0,0.00022465,2]
[362145391,1748035835807,-158.147005,0.00022505,2]
[362145392,1748035835817,-500.0,0.00022683,2]
[362145393,1748035835828,-404.0,0.00022793,2]
[362145394,1748035835838,-863.1762816,0.0002289,2]
[362145395,1748035835848,-160.0,0.00023,3]
[362145396,1748035835858,-422.85710789,0.00023,3]
[362145397,1748035835869,-500.0,0.00023013,2]
[362145398,1748035835879,-248.71531821,0.00023273,2]
[362145399,1748035835889,-500.0,0.00023276,2]
[362145400,1748035835899,-12647.66147447,0.00023277,10]
[362145401,1748035835909,-500.0,0.00023286,2]
[362145402,1748035835919,-5951.78,0.00023287,2]
[362145403,1748035835929,-403.71612484,0.00023471,2]
[362145404,1748035835939,-500.0,0.00023499,2]
[362145405,1748035835949,-500.0,0.00023499,2]
[362145406,1748035835959,-500.0,0.00023499,2]
[362145407,1748035835969,-500.0,0.00023499,2]
[362145408,1748035835979,-500.0,0.00023499,2]
[362145409,1748035835989,-500.0,0.00023499,2]
[362145410,1748035836000,-500.0,0.00023499,2]
[362145411,1748035836010,-500.0,0.00023499,2]
[362145412,1748035836020,-500.0,0.00023499,2]
[362145413,1748035836030,-500.0,0.00023499,2]
[362145414,1748035836040,-341.1480297,0.00023499,2]
[362145415,1748035836050,-297836.7516116,0.000235,3]
[362145416,1748035836060,-422.85710789,0.000235,3]
[362145417,1748035836070,-500.0,0.00023561,2]
[362145418,1748035836080,-4880.15,0.00023644,2]
[362145419,1748035836090,-500.0,0.00023779,2]
[362145420,1748035836099,-1501.17402631,0.0002378,2]
[362145421,1748035836110,-5000.0,0.00023781,2]
[362145422,1748035836120,-422.85710789,0.00024,10]
[362145423,1748035836129,-273.898779,0.00024473,2]
[362145424,1748035836139,-257.91778498,0.00024642,2]
[362145425,1748035836148,-430.0,0.00024657,2]
[362145426,1748035836158,-430.0,0.00024657,2]
[362145427,1748035836168,-430.0,0.00024657,2]
[362145428,1748035836177,-430.0,0.00024657,2]
[362145429,1748035836187,-158.10231729,0.00024685,2]
[362145430,1748035836197,-863.1762816,0.000248,2]
[362145431,1748035836206,-21241.72956,0.000248,2]
[362145432,1748035836216,-500.0,0.00024836,2]
[362145433,1748035836226,-2124.172956,0.00024839,2]
[362145434,1748035836235,-1000.0,0.00024849,2]
[362145435,1748035836247,-1000.0,0.00024849,2]
[362145436,1748035836257,-1000.0,0.00024849,2]
[362145437,1748035836267,-1000.0,0.00024849,2]
[362145438,1748035836276,-1000.0,0.00024849,2]
[362145439,1748035836286,-1000.0,0.00024849,2]
[362145440,1748035836296,-1000.0,0.00024849,2]
[362145441,1748035836306,-1000.0,0.00024849,2]
[362145442,1748035836316,-1000.0,0.00024849,2]
[362145443,1748035836326,-1000.0,0.00024849,2]
[362145444,1748035836336,-500.0,0.00024875,7]
[362145445,1748035836346,-158.10231729,0.00024877,2]
[362145446,1748035836355,-22881.48,0.000249,2]
[362145447,1748035836365,-337.90282934,0.000249,2]
[362145448,1748035836375,-205045.29027063,0.000249,2]
[362145454,1748035837610,-271.4,0.00015708,2]
[362145455,1748035837671,-85.31998117,0.00015708,2]
[362145456,1748035837680,-500.0,0.00015708,2]
[362145457,1748035837690,-307.15084257,0.00015708,2]
[362145458,1748035837701,-74.82752448,0.00015708,2]
[362145459,1748035837712,-960.0,0.00019793,2]
[362145460,1748035837721,-484.52210355,0.00020548,2]
[362145491,1748035845890,-15.47789645,0.00020548,2]
[362145492,1748035845900,-500.0,0.00020548,2]
[362145493,1748035845910,-267.09192802,0.00020548,2]
[362145494,1748035845920,-500.0,0.00020548,2]
[362145495,1748035845930,-500.0,0.00020548,2]
[362145496,1748035845940,-500.0,0.00020548,2]
[362145497,1748035845949,-500.0,0.00020548,2]
[362145498,1748035845959,-442.53672362,0.00020548,2]
[362145500,1748035846011,-57.46327638,0.00020548,2]
[362145501,1748035846021,-500.0,0.00020548,2]
[362145502,1748035846030,-500.0,0.00020548,2]
[362145503,1748035846040,-500.0,0.00020548,2]
[362145504,1748035846050,-500.0,0.00020548,2]
[362145505,1748035846060,-65.6733517,0.00020548,2]
[362145520,1748036116618,200.0,0.0002739,120]
[362145522,1748036220984,209.35381818,0.0002,120]
[362145523,1748036229082,54001.05,0.00027397,120]
[362145524,1748036365698,673.896114,0.00027397,120]
[362145525,1748036563829,1999.8,0.00025841,30]
[362145530,1748036780608,-220.0,0.00013562,2]
[362145531,1748036783080,-194.22209685,0.00013562,2]
[362145532,1748036786644,-206.23920917,0.00013562,2]
[362145533,1748036790830,-261.26008969,0.00013562,2]
[362145534,1748036795930,-178.0,0.00013562,2]
[362145535,1748036797464,-215.54915997,0.00013562,2]
[362145536,1748036800818,-152.0,0.00013562,2]
[362145537,1748036805572,-193.60574598,0.00013562,2]
[362145538,1748036809425,-154.7466949,0.00013562,2]
[362145539,1748036811577,-249.83518103,0.00013562,2]
[362145540,1748036813191,-152.0,0.00013562,2]
[362145541,1748036814949,-80.07733127,0.00013562,2]
[362145542,1748036814974,-79.92266873,0.00013699,2]
[362145543,1748036816934,-78.22433627,0.00013699,2]
[362145552,1748036988660,35085.8639591,0.00027397,120]
[362145553,1748037024034,-201.54045591,0.000251,90]
[362145554,1748037024074,-596.91908818,0.00026334,90]
[362145574,1748037031988,-244.32871339,0.00015127,2]
[362145576,1748037032000,-167.72462915,0.00015336,2]
[362145578,1748037032012,-300.0,0.00015433,2]
[362145581,1748037032023,-300.0,0.00015433,2]
[362145583,1748037032033,-500.0,0.00015434,2]
[362145585,1748037032043,-500.0,0.00015434,2]
[362145587,1748037032052,-651.43389787,0.00015434,2]
[362145588,1748037032062,-500.0,0.00015434,2]
[362145590,1748037032071,-507.40694828,0.00015434,2]
[362145593,1748037032081,-500.0,0.00015434,2]
[362145595,1748037032092,-500.0,0.00015434,2]
[362145597,1748037032102,-300.0,0.00015434,2]
[362145599,1748037032112,-464.6785496,0.00015435,2]
[362145601,1748037032122,-500.0,0.00015435,2]
[362145603,1748037032132,-221.06658073,0.00015435,2]
[362145605,1748037032141,-28377.41902945,0.00015435,2]
[362145610,1748037032207,-21622.58097055,0.00015435,2]
[362145613,1748037032217,-24900.0,0.00015436,2]
[362145615,1748037032227,-207.4,0.00016428,2]
[362145617,1748037032236,-430.0,0.00016438,2]
[362145619,1748037032246,-430.0,0.00016438,2]
[362145621,1748037032255,-430.0,0.00016438,2]
[362145623,1748037032265,-430.0,0.00016438,2]
[362145624,1748037032274,-430.0,0.00016438,2]
[362145626,1748037032283,-430.0,0.00016438,2]
[362145629,1748037032292,-430.0,0.00016438,2]
[362145630,1748037032303,-430.0,0.00016438,2]
[362145633,1748037032313,-510.0,0.00016438,2]
[362145635,1748037032322,-430.0,0.00016438,2]
[362145637,1748037032332,-430.0,0.00016438,2]
[362145639,1748037032342,-430.0,0.00016438,2]
[362145641,1748037032351,-430.0,0.00016438,2]
[362145643,1748037032361,-430.0,0.00016438,2]
[362145645,1748037032371,-312.64605759,0.00016438,2]
[362145647,1748037032381,-430.0,0.00016438,2]
[362145649,1748037032391,-430.0,0.00016438,2]
[362145651,1748037032400,-430.0,0.00016438,2]
[362145653,1748037032410,-360.0,0.00016438,2]
[362145655,1748037032419,-430.0,0.00016438,2]
[362145657,1748037032429,-430.0,0.00016438,2]
[362145661,1748037032439,-430.0,0.00016438,2]
[362145662,1748037032578,-430.0,0.00016438,2]
[362145663,1748037032588,-370.0,0.00016438,2]
[362145664,1748037032599,-430.0,0.00016438,2]
[362145665,1748037032610,-306.56813409,0.00016438,2]
[362145666,1748037032620,-430.0,0.00016438,2]
[362145667,1748037032631,-430.0,0.00016438,2]
[362145668,1748037032641,-430.0,0.00016438,2]
[362145669,1748037032652,-430.0,0.00016438,2]
[362145670,1748037032661,-421.09409967,0.00016438,2]
[362145671,1748037032670,-430.0,0.00016438,2]
[362145672,1748037032680,-430.0,0.00016438,2]
[362145673,1748037032689,-522.20678966,0.00016438,2]
[362145674,1748037032699,-430.0,0.00016438,2]
[362145675,1748037032709,-430.0,0.00016438,2]
[362145676,1748037032719,-430.0,0.00016438,2]
[362145677,1748037032728,-430.0,0.00016438,2]
[362145678,1748037032738,-430.0,0.00016438,2]
[362145679,1748037032747,-430.0,0.00016438,2]
[362145680,1748037032757,-299.19,0.00016438,2]
[362145681,1748037032766,-430.0,0.00016438,2]
[362145682,1748037032776,-430.0,0.00016438,2]
[362145683,1748037032786,-430.0,0.00016438,2]
[362145684,1748037032795,-430.0,0.00016438,2]
[362145685,1748037032804,-430.0,0.00016438,2]
[362145686,1748037032814,-430.0,0.00016438,2]
[362145687,1748037032823,-430.0,0.00016438,2]
[362145688,1748037032833,-300.0,0.00016438,2]
[362145689,1748037032842,-270.0,0.00016438,2]
[362145690,1748037032852,-338.46,0.00016438,2]
[362145691,1748037032862,-430.0,0.00016438,2]
[362145692,1748037032873,-430.0,0.00016438,2]
[362145693,1748037032896,-337.11,0.00016438,2]
[362145694,1748037032908,-430.0,0.00016438,2]
[362145695,1748037032919,-211.53,0.00016438,2]
[362145696,1748037032932,-430.0,0.00016438,2]
[362145697,1748037032942,-325.35,0.00016438,2]
[362145698,1748037032952,-430.0,0.00016438,2]
[362145699,1748037032964,-430.0,0.00016438,2]
[362145700,1748037032975,-365.61,0.00016438,2]
[362145701,1748037032986,-430.0,0.00016438,2]
[362145702,1748037032996,-430.0,0.00016438,2]
[362145703,1748037033008,-292.71,0.00016438,2]
[362145704,1748037033018,-430.0,0.00016438,2]
[362145705,1748037033028,-430.0,0.00016438,2]
[362145706,1748037033039,-430.0,0.00016438,2]
[362145707,1748037033050,-327.58,0.00016438,2]
[362145708,1748037033060,-430.0,0.00016438,2]
[362145709,1748037033070,-430.0,0.00016438,2]
[362145710,1748037033080,-473.08,0.00016438,2]
[362145711,1748037033090,-332.58,0.00016438,2]
[362145712,1748037033100,-430.0,0.00016438,2]
[362145713,1748037033110,-430.0,0.00016438,2]
[362145714,1748037033121,-430.0,0.00016438,2]
[362145715,1748037033131,-430.0,0.00016438,2]
[362145716,1748037033140,-468.21,0.00016438,2]
[362145717,1748037033150,-430.0,0.00016438,2]
[362145718,1748037033160,-430.0,0.00016438,2]
[362145719,1748037033170,-430.0,0.00016438,2]
[362145720,1748037033180,-430.0,0.00016438,2]
[362145721,1748037033189,-430.0,0.00016438,2]
[362145722,1748037033199,-430.0,0.00016438,2]
[362145723,1748037033209,-430.0,0.00016438,2]
[362145724,1748037033220,-430.0,0.00016438,2]
[362145725,1748037033230,-430.0,0.00016438,2]
[362145726,1748037033241,-430.0,0.00016438,2]
[362145727,1748037033251,-430.0,0.00016438,2]
[362145728,1748037033261,-430.0,0.00016438,2]
[362145729,1748037033271,-430.0,0.00016438,2]
[362145730,1748037033282,-430.0,0.00016438,2]
[362145731,1748037033291,-430.0,0.00016438,2]
[362145732,1748037033301,-376.5,0.00016438,2]
[362145733,1748037033311,-430.0,0.00016438,2]
[362145734,1748037033320,-174.6196243,0.00016438,2]
[362145735,1748037033330,-335.16532381,0.00016438,2]
[362145736,1748037033339,-430.0,0.00016438,2]
[362145737,1748037033349,-430.0,0.00016438,2]
[362145738,1748037033360,-430.0,0.00016438,2]
[362145739,1748037033370,-430.0,0.00016438,2]
[362145740,1748037033382,-430.0,0.00016438,2]
[362145741,1748037033392,-289.92,0.00016438,2]
[362145742,1748037033402,-430.0,0.00016438,2]
[362145743,1748037033412,-430.0,0.00016438,2]
[362145744,1748037033422,-277.41,0.00016438,2]
[362145745,1748037033432,-430.0,0.00016438,2]
[362145746,1748037033442,-430.0,0.00016438,2]
[362145747,1748037033452,-430.0,0.00016438,2]
[362145748,1748037033463,-430.0,0.00016438,2]
[362145749,1748037033473,-430.0,0.00016438,2]
[362145750,1748037033487,-430.0,0.00016438,2]
[362145751,1748037033498,-495.24544836,0.00016438,2]
[362145752,1748037033508,-430.0,0.00016438,2]
[362145753,1748037033519,-430.0,0.00016438,2]
[362145754,1748037033529,-430.0,0.00016438,2]
[362145755,1748037033540,-430.0,0.00016438,2]
[362145756,1748037033550,-430.0,0.00016438,2]
[362145757,1748037033559,-430.0,0.00016438,2]
[362145758,1748037033569,-430.0,0.00016438,2]
[362145759,1748037033579,-430.0,0.00016438,2]
[362145760,1748037033589,-430.0,0.00016438,2]
[362145761,1748037033599,-430.0,0.00016438,2]